Workbook

Sheet Sheet1
B2: 2017年省对下一般公共预算专项转移支付预算表
V3: 单位：万元
A4: 地 区 | B4: 专 项 转 移 支 付
B5: 专项转移支付小计 | C5: 一般公共服务 | D5: 外交 | E5: 国防 | F5: 公共安全 | G5: 教育 | H5: 科学技术 | I5: 文化体育与传媒 | J5: 社会保障和就业 | K5: 医疗卫生与计划生育 | L5: 节能环保 | M5: 城乡社区 | N5: 农林水 | O5: 交通运输 | P5: 资源勘探信息等 | Q5: 商业服务业等 | R5: 金融 | S5: 国土海洋气象 | T5: 住房保障 | U5: 粮油物资储备 | V5: 其他专项转移支付
A6: 随州市 | B6: =B7+B8 -> 339519 | C6: =C7+C8 -> 2068 | D6: 0 | E6: 20 | F6: 3402 | G6: 17544 | H6: 3101 | I6: 3559 | J6: 62631 | K6: 25605 | L6: 12413 | M6: 2090 | N6: 101512 | O6: 53750 | P6: 479 | Q6: 3681 | R6: 0 | S6: 16254 | T6: 20458 | U6: 5622 | V6: 5330
A7: 随州市本级 | B7: 50721 | C7: 572 | F7: 3085 | G7: 926 | H7: 2785 | I7: 1142 | J7: 13380 | K7: 5438 | L7: 2020 | M7: 900 | N7: 6097 | O7: 7062 | Q7: 1000 | S7: 2038 | T7: 3934 | U7: 342
A8: 区县级合计 | B8: =SUM(B9:B11) -> 288798 | C8: =SUM(C9:C11) -> 1496 | D8: =SUM(D9:D11) -> 0 | E8: =SUM(E9:E11) -> 20 | F8: =SUM(F9:F11) -> 317 | G8: =SUM(G9:G11) -> 16618 | H8: =SUM(H9:H11) -> 316 | I8: =SUM(I9:I11) -> 2417 | J8: =SUM(J9:J11) -> 49251 | K8: =SUM(K9:K11) -> 20167 | L8: =SUM(L9:L11) -> 10393 | M8: =SUM(M9:M11) -> 1190 | N8: =SUM(N9:N11) -> 95415 | O8: =SUM(O9:O11) -> 46688 | P8: =SUM(P9:P11) -> 479 | Q8: =SUM(Q9:Q11) -> 2681 | R8: =SUM(R9:R11) -> 0 | S8: =SUM(S9:S11) -> 14216 | T8: =SUM(T9:T11) -> 16524 | U8: =SUM(U9:U11) -> 5280 | V8: =SUM(V9:V11) -> 5330
A9: 曾都区 | B9: =SUM(C9:V9) -> 60783 | C9: 484 | F9: 48 | G9: 4249 | H9: 80 | I9: 588 | J9: 14453 | K9: 3533 | L9: 2479 | M9: 700 | N9: 21719 | O9: 3411 | P9: 100 | Q9: 888 | S9: 1145 | T9: 5688 | U9: 1178 | V9: 40
A10: 广水市 | B10: 117876 | C10: 427 | E10: 20 | F10: 130 | G10: 6934 | H10: 157 | I10: 727 | J10: 18651 | K10: 9729 | L10: 1845 | M10: 450 | N10: 28133 | O10: 38145 | P10: 207 | Q10: 1279 | S10: 34 | T10: 4037 | U10: 1731 | V10: 5240
A11: 随县 | B11: 110139 | C11: 585 | F11: 139 | G11: 5435 | H11: 79 | I11: 1102 | J11: 16147 | K11: 6905 | L11: 6069 | M11: 40 | N11: 45563 | O11: 5132 | P11: 172 | Q11: 514 | R11: 0 | S11: 13037 | T11: 6799 | U11: 2371 | V11: 50

Sheet Sheet2

Sheet Sheet3
